[Event "17th Delhi GM Open 2019-B"]
[Site "Delhi"]
[Date "2019.01.12"]
[Round "10"]
[White "Heikrujam Jacky Singh"]
[Black "Manu, M."]
[Result "1/2-1/2"]
[ECO "D00"]
[WhiteElo "1870"]
[BlackElo "1732"]
[Annotator "NA RC"]
[PlyCount "129"]
[EventDate "2019.01.09"]
[EventType "swiss"]
[EventCountry "IND"]
[SourceTitle "playchess.com"]
[Source "ChessBase"]
[SourceQuality "1"]
[TimeControl "3600+30"]

{[%evp 8,129,14,-29,-10,-38,-31,-36,-11,-6,2,-12,-5,0,-2,32767,32767,32767,32767,32767,32767,32767,32767,14,18,-8,13,-38,32767,32767,32767,410,331,139,134,137,133,125,139,32767,32767,32767,32767,159,32767,32767,180,204,200,197,32767,32767,32767,32767,32767,32767,32767,32767,402,180,241,63,61,68,58,39,60,60,93,112,138,72,145,139,134,27,179,176,286,289,317,204,210,189,269,399,473,341,881,279,445,243,231,0,0,0,0,-158,29983,29984,29991,29992,29992,32767,-38,-31,-34,-31,-31,-27,-34,-31,-31,-31,-27,-31,-27,-27,-31,-31,-27,-31,-31,-27]} 1. d4 {[%emt 0:00:00]} Nf6 2. Nf3 {[%emt 0:00:00]} g6 {[%emt 0:00:00]} 3. Nc3 {[%emt 0:00:00]} d5 {[%emt 0:00:00]} 4. Bf4 {[%emt 0:00:00]} Bg7 {[%emt 0:00:00]} 5. Ne5 {[%emt 0:00:00]} O-O {[%emt 0:00:00]} 6. Qd2 {[%emt 0:00:00]} c5 {[%emt 0:00:00]} 7. e3 {[%emt 0:00:00]} Nc6 {[%emt 0:00:00]} 8. Be2 {[%emt 0:00:00]} cxd4 {[%emt 0:00:00] D00: 1 d4 d5: Unusual lines} 9. exd4 {[%emt 0:00:00]} Qb6 {[%emt 0:00:00]} 10. Nxc6 {[%emt 0:00:00] LiveBook: 3 Games} bxc6 {[%emt 0:00:00]} (10... Qxc6 11. O-O Bd7 12. Rfe1 a6 13. a4 Rac8 14. a5 e6 15. Ra3 b5 16. axb6 Qxb6 17. Bxa6 {½-½ (60) Agdestein,S (2603)-Zude,E (2403) Helsingor 2016}) 11. Na4 {[%emt 0:00:00]} Qd8 {[%emt 0:00:00]} 12. Nc5 {[%emt 0:00:00]} Bf5 $146 {[%emt 0:00:00]} ({Predecessor:} 12... Nd7 13. Nxd7 Bxd7 14. O-O Qb6 15. c3 Rfe8 {0-1 (15) Cottegnie,F (2366)-Larsson,S (2319) ICCF email 2016}) 13. f3 {[%emt 0:00:00]} Nd7 {[%emt 0:00:00]} 14. Nxd7 {[%emt 0:00:00]} Qxd7 {[%emt 0:00:00]} 15. g4 {[%emt 0:00:00]} Be6 {[%emt 0:00:00]} 16. h4 {[%emt 0:00:00]} c5 {[%emt 0:00:00]} 17. Bh6 {[%emt 0:03:36]} cxd4 {[%emt 0:02:25]} 18. h5 {[%emt 0:01:12]} f6 {[%emt 0:03:50] [#]} 19. hxg6 $1 {[%emt 0:03:08]} hxg6 {[%emt 0:00:00]} 20. Bxg7 {[%emt 0:00:18]} ({Inferior is} 20. Qxd4 Bxh6 21. Rxh6 Kg7 $11) (20. Bd3 $18 {and White stays clearly on top.} f5 21. Qg5) 20... Kxg7 {[%emt 0:00:00]} 21. Qh6+ {[%emt 0:01:00]} ({Don't play} 21. Qxd4 $6 Rab8 $11) 21... Kf7 {[%emt 0:00:00]} 22. Bd3 {[%emt 0:08:31]} Rg8 {[%emt 0:00:56]} 23. Qh7+ {[%emt 0:01:16]} Rg7 {[%emt 0:00:00]} 24. Bxg6+ {[%emt 0:00:01]} Kf8 {[%emt 0:00:01]} 25. Qh6 {[%emt 0:02:29]} Qb5 {[%emt 0:04:25]} 26. O-O-O {[%emt 0:01:45]} Rb8 {[%emt 0:02:49]} 27. b3 {[%emt 0:00:01]} Qc5 {[%emt 0:01:12]} 28. Qf4 {[%emt 0:07:14]} Rc8 {[%emt 0:01:44]} 29. Rh8+ {[%emt 0:01:36]} Bg8 {[%emt 0:00:00]} 30. Qh6 {[%emt 0:02:36]} d3 {[%emt 0:00:02]} 31. Bxd3 {[%emt 0:00:01]} Kf7 {[%emt 0:03:45]} 32. Qh5+ {[%emt 0:00:00]} Kf8 {[%emt 0:04:59]} 33. Bg6 {[%emt 0:00:01]} (33. Kb1 $142) 33... e6 {[%emt 0:00:39]} 34. Qh6 $2 {[%emt 0:00:32]} (34. Kb1 $18 Qe3 35. Bd3) 34... f5 $1 {[%emt 0:01:16]} 35. Rd2 {[%emt 0:00:50]} Qc3 $1 {[%emt 0:00:26]} 36. Kb1 {[%emt 0:01:11]} fxg4 $1 {[%emt 0:00:47]} 37. fxg4 {[%emt 0:00:16]} Ke7 {[%emt 0:01:24]} 38. Bd3 {[%emt 0:00:54]} Rxg4 {[%emt 0:00:01]} 39. Rd1 {[%emt 0:00:12]} (39. Qh2 $142) 39... Qg7 {[%emt 0:01:24]} (39... a5 $1 $14) 40. Qh1 {[%emt 0:00:22]} a5 {[%emt 0:00:26]} 41. Rh4 {[%emt 0:00:37]} (41. Re1 $16) 41... Rg2 {[%emt 0:00:41]} (41... a4 $16 42. Rxg4 Qxg4) 42. Rh2 {[%emt 0:00:38]} Rg5 {[%emt 0:00:40]} (42... Rg4 {keeps fighting.}) 43. Qe1 {[%emt 0:00:20]} Rc5 {[%emt 0:00:45]} 44. Qh4 {[%emt 0:00:09]} Kd6 {[%emt 0:00:20]} 45. Qf4+ {[%emt 0:00:48]} e5 {[%emt 0:00:00]} 46. Qf2 {[%emt 0:00:18]} Kc6 {[%emt 0:00:52]} 47. a4 {[%emt 0:00:09]} Be6 $2 {[%emt 0:00:33]} (47... e4) 48. Bb5+ $2 {[%emt 0:00:23]} (48. Rh7 Rg2 49. Qf1 (49. Rxg7 Rxf2 50. Rh1 e4 $11)) 48... Kd6 {[%emt 0:00:14]} (48... Kb6 {was worth a try.} 49. Rdh1 Bf5) 49. Qd2 {[%emt 0:00:47]} Rg1 {[%emt 0:00:17] [#]} 50. Rh1 $2 {[%emt 0:00:26]} (50. Rxg1 $1 $18 Qxg1+ 51. Ka2) 50... Rg2 $1 {[%emt 0:00:45]} 51. Qxa5 {[%emt 0:00:11]} Rcxc2 {[%emt 0:00:34]} 52. Qd8+ $2 {[%emt 0:00:27]} (52. Qb6+ $11 Ke7 53. Qa7+ Kd6 54. Qb8+ (54. Qxg7 Rb2+ {[%mdl 64] Double Attack} 55. Ka1 Ra2+ 56. Kb1 Rab2+ 57. Ka1 Ra2+ 58. Kb1 Rab2+ $11) 54... Qc7 55. Qf8+ Qe7 56. Qb8+ Qc7 57. Qf8+ Qe7 58. Qb8+ Qc7) 52... Bd7 $4 {[%emt 0:01:09] [#]} (52... Kc5 $19 53. b4+ {[%mdl 64] Decoy} Kxb4 54. Qd6+ Rc5 55. Qxe6 e4) 53. Rh6+ $3 {[%emt 0:00:14]} Qxh6 {[%emt 0:00:15]} 54. Qxd7+ {[%emt 0:00:37]} Kc5 {[%emt 0:00:01]} 55. Qxd5+ {[%emt 0:00:35]} Kb4 {[%emt 0:01:13]} 56. Qxe5 {[%emt 0:00:40]} Rb2+ {[%emt 0:00:19] Decoy} 57. Qxb2 {[%emt 0:00:01]} Rxb2+ {[%emt 0:00:25]} 58. Kxb2 {[%emt 0:00:00]} Qf6+ {[%emt 0:00:47]} 59. Kb1 $1 {[%emt 0:00:51]} Ka3 {[%emt 0:01:13]} 60. Kc2 {[%emt 0:00:16]} Qb2+ {[%emt 0:00:44]} 61. Kd3 {[%emt 0:00:00]} Kxb3 {[%emt 0:00:16]} 62. Ke3 {[%emt 0:00:15]} Qe5+ {[%emt 0:00:14]} 63. Kf2 {[%emt 0:00:17]} Qf4+ {[%emt 0:00:28]} 64. Ke2 {[%emt 0:00:20]} Qg4+ {[%emt 0:00:02]} 65. Ke1 $11 {[%emt 0:00:17]} 1/2-1/2

[Event "17th Delhi GM Open 2019-B"]
[Site "Delhi"]
[Date "2019.01.12"]
[Round "10"]
[White "Dhanush Ragav N S"]
[Black "Yadav Prem Gopal"]
[Result "1/2-1/2"]
[ECO "D31"]
[WhiteElo "1854"]
[BlackElo "1669"]
[Annotator "NA RC"]
[PlyCount "44"]
[EventDate "2019.01.09"]
[EventType "swiss"]
[EventCountry "IND"]
[SourceTitle "playchess.com"]
[Source "ChessBase"]
[SourceQuality "1"]
[TimeControl "3600+30"]

{[%evp 8,43,28,0,0,-41,-27,-29,32767,32767,32767,32767,20,32767,32767,32767,32767,32767,32767,32767,32767,32767,32767,-120,-108,-116,-78,-174,-156,-163,-112,-116,-126,-121,32767,32767,275,275]} 1. d4 {[%emt 0:00:00]} d5 {[%emt 0:00:00]} 2. c4 {[%emt 0:00:00]} e6 {[%emt 0:00:00]} 3. Nc3 {[%emt 0:00:00]} a6 {[%emt 0:00:00]} 4. cxd5 {[%emt 0:00:00]} exd5 {[%emt 0:00:00]} 5. Qc2 {[%emt 0:00:00] LiveBook: 5 Games} Nc6 {[%emt 0:00:00]} 6. Be3 {[%emt 0:08:50]} ({White should try} 6. Nf3 $11) 6... Nge7 {[%emt 0:00:00]} 7. Nf3 {[%emt 0:03:21]} Nf5 {[%emt 0:00:00]} 8. Qd2 {[%emt 0:01:02]} Nd6 {[%emt 0:00:00]} 9. Bf4 {[%emt 0:09:56]} Nc4 {[%emt 0:00:00]} 10. Qc1 {[%emt 0:06:01]} Bf5 {[%emt 0:00:31]} 11. e4 {[%emt 0:01:06]} dxe4 {[%emt 0:01:00]} 12. Bxc4 {[%emt 0:00:35]} exf3 {[%emt 0:00:01]} 13. Qe3+ {[%emt 0:00:32]} Be7 {[%emt 0:02:36]} 14. O-O-O {[%emt 0:00:39]} fxg2 {[%emt 0:00:54]} 15. Rhg1 {[%emt 0:00:32]} O-O {[%emt 0:01:03]} 16. Rxg2 {[%emt 0:00:26]} Re8 {[%emt 0:00:53]} 17. Nd5 {[%emt 0:00:27]} (17. Be5 $15 g5 18. Ne4) 17... Bd6 {[%emt 0:02:10]} 18. Qg3 {[%emt 0:00:29]} Bg6 {[%emt 0:01:00]} 19. h4 {[%emt 0:00:25]} b5 {[%emt 0:09:55]} 20. Bb3 {[%emt 0:00:30]} Bf8 {[%emt 0:03:28]} 21. Bxc7 {[%emt 0:00:29]} Qd7 $2 {[%emt 0:02:38] [#]} (21... Qc8 $16) 22. h5 $18 {[%emt 0:00:22]} Ne7 {[%emt 0:05:14]} 1/2-1/2

[Event "17th Delhi GM Open 2019-B"]
[Site "Delhi"]
[Date "2019.01.12"]
[Round "10"]
[White "Aryan"]
[Black "Sham R"]
[Result "0-1"]
[ECO "E61"]
[WhiteElo "1784"]
[BlackElo "1590"]
[Annotator "NA"]
[PlyCount "115"]
[EventDate "2019.01.09"]
[EventType "swiss"]
[EventCountry "IND"]
[SourceTitle "playchess.com"]
[Source "ChessBase"]
[SourceQuality "1"]
[TimeControl "3600+30"]

1. d4 {[%emt 0:00:00]} Nf6 2. Nf3 {[%emt 0:00:00]} g6 {[%emt 0:00:00]} 3. e3 {[%emt 0:00:00]} Bg7 {[%emt 0:00:00]} 4. Be2 {[%emt 0:00:00]} O-O {[%emt 0:00:00]} 5. O-O {[%emt 0:00:00]} d6 {[%emt 0:00:00]} 6. c4 {[%emt 0:00:00]} Nbd7 {[%emt 0:00:00]} 7. Nc3 {[%emt 0:00:00]} e5 {[%emt 0:00:00]} 8. b4 {[%emt 0:00:00]} c6 {[%emt 0:00:00]} 9. Qc2 {[%emt 0:00:00]} Qe7 {[%emt 0:00:00]} 10. Bb2 {[%emt 0:00:00]} e4 {[%emt 0:00:00]} 11. Nd2 {[%emt 0:00:00]} d5 {[%emt 0:00:00]} 12. b5 {[%emt 0:00:00]} Rd8 {[%emt 0:00:00]} 13. a4 {[%emt 0:00:00]} Nf8 {[%emt 0:00:00]} 14. Ba3 {[%emt 0:00:00]} Qc7 {[%emt 0:00:00]} 15. Rfc1 {[%emt 0:00:00]} Bg4 {[%emt 0:00:00]} 16. cxd5 {[%emt 0:00:00]} cxd5 {[%emt 0:00:00]} 17. Nb3 {[%emt 0:02:35]} Rac8 {[%emt 0:00:00]} 18. Qd1 {[%emt 0:01:37]} Bxe2 {[%emt 0:00:00]} 19. Nxe2 {[%emt 0:00:12]} Qb8 {[%emt 0:00:00]} 20. Nc5 {[%emt 0:04:37]} Ne6 {[%emt 0:00:00]} 21. Ra2 {[%emt 0:01:38]} Nd7 {[%emt 0:05:18]} 22. Nxe6 {[%emt 0:04:45]} fxe6 {[%emt 0:01:56]} 23. Nf4 {[%emt 0:00:00]} Kf7 {[%emt 0:04:45]} 24. Rxc8 {[%emt 0:00:47]} Rxc8 {[%emt 0:00:43]} 25. Nxe6 {[%emt 0:00:49]} Kxe6 {[%emt 0:02:21]} 26. Qg4+ {[%emt 0:00:05]} Kf6 {[%emt 0:00:50]} 27. Qxd7 {[%emt 0:00:01]} Qc7 {[%emt 0:00:01]} 28. Qxc7 {[%emt 0:01:56]} Rxc7 {[%emt 0:00:00]} 29. Kf1 {[%emt 0:01:02]} Rc4 {[%emt 0:03:54]} 30. a5 {[%emt 0:00:00]} b6 {[%emt 0:02:52]} 31. axb6 {[%emt 0:00:34]} axb6 {[%emt 0:00:00]} 32. Ke2 {[%emt 0:02:02]} Ke6 {[%emt 0:00:02]} 33. Kd2 {[%emt 0:00:26]} Ra4 {[%emt 0:08:37]} 34. Kc2 {[%emt 0:00:18]} Ra5 {[%emt 0:06:46]} 35. Ra1 {[%emt 0:04:38]} Rxb5 {[%emt 0:01:33]} 36. Bb2 {[%emt 0:00:00]} Bf8 {[%emt 0:01:29]} 37. Ra8 {[%emt 0:00:01]} Bd6 {[%emt 0:02:40]} 38. g3 {[%emt 0:00:01]} Rb4 {[%emt 0:01:24]} 39. Re8+ {[%emt 0:00:01]} Kf7 {[%emt 0:01:36]} 40. Rh8 {[%emt 0:00:00]} Rc4+ {[%emt 0:01:13]} 41. Kd1 {[%emt 0:00:00]} h6 {[%emt 0:02:20]} 42. Rh7+ {[%emt 0:00:11]} Kf6 {[%emt 0:06:13]} 43. Rb7 {[%emt 0:00:04]} Bc7 {[%emt 0:00:00]} 44. Ba3 {[%emt 0:00:01]} Ke6 {[%emt 0:00:00]} 45. Bf8 {[%emt 0:00:01]} h5 {[%emt 0:00:36]} 46. Bh6 {[%emt 0:00:01]} Kd7 {[%emt 0:02:55]} 47. Ra7 {[%emt 0:02:04]} Kc6 {[%emt 0:02:10]} 48. Bf4 {[%emt 0:00:00]} Kd7 {[%emt 0:02:41]} 49. h4 {[%emt 0:00:00]} Kc8 {[%emt 0:00:44]} 50. Ra8+ {[%emt 0:00:35]} Kb7 {[%emt 0:00:44]} 51. Rg8 {[%emt 0:00:01]} Bxf4 {[%emt 0:01:15]} 52. gxf4 {[%emt 0:00:00]} b5 {[%emt 0:02:16]} 53. Rxg6 {[%emt 0:00:17]} b4 {[%emt 0:00:02]} 54. Rd6 {[%emt 0:02:27]} b3 {[%emt 0:00:47]} 55. Rxd5 {[%emt 0:00:00]} Kb6 {[%emt 0:00:40]} 56. Rd8 {[%emt 0:00:02]} Kc7 {[%emt 0:00:00]} 57. Rg8 {[%emt 0:00:01]} b2 {[%emt 0:00:01]} 58. Rg7+ {[%emt 0:00:00]} 0-1

[Event "17th Delhi GM Open 2019-B"]
[Site "Delhi"]
[Date "2019.01.12"]
[Round "10"]
[White "Vishnu, DevYadav"]
[Black "Sharsha Backer"]
[Result "1/2-1/2"]
[ECO "B22"]
[WhiteElo "1751"]
[BlackElo "1812"]
[Annotator "NA RC"]
[PlyCount "55"]
[EventDate "2019.01.09"]
[EventType "swiss"]
[EventCountry "IND"]
[SourceTitle "playchess.com"]
[Source "ChessBase"]
[SourceQuality "1"]
[TimeControl "3600+30"]

{[%evp 8,55,25,19,31,32767,32767,32767,32767,32767,32767,32767,32767,32767,84,56,76,46,69,20,22,23,56,47,55,32,39,33,37,2,32767,32767,32767,32767,32767,32767,32767,-41,-37,-35,32767,32767,32767,32767,16,14,20,10,15,4]} 1. e4 {[%emt 0:00:00]} c5 {[%emt 0:00:00]} 2. c3 {[%emt 0:00:00]} d5 {[%emt 0:00:00]} 3. exd5 {[%emt 0:00:00]} Qxd5 {[%emt 0:00:00]} 4. Nf3 {[%emt 0:00:00]} Nf6 {[%emt 0:00:00]} 5. d4 {[%emt 0:00:00] LiveBook: 4910 Games} Nc6 {[%emt 0:00:00]} 6. Na3 {[%emt 0:00:00]} cxd4 {[%emt 0:00:00]} 7. Nb5 {[%emt 0:00:00]} Qd8 {[%emt 0:00:00]} 8. Bf4 {[%emt 0:00:00] B22: Sicilian: 2 c3} (8. Nfxd4 Nxd4 9. Qxd4 Qxd4 10. cxd4 Nd5 11. Bc4 a6 12. Nd6+ exd6 13. Bxd5 Be7 14. Be3 Rb8 15. Ke2 Be6 16. Bxe6 fxe6 {½-½ (57) Bacrot,E (2695)-Korotylev,A (2600) Moscow 2007}) 8... Nd5 {[%emt 0:00:00]} 9. Bg3 {[%emt 0:00:00]} a6 {[%emt 0:00:00]} 10. Nbxd4 {[%emt 0:00:00]} e6 {[%emt 0:00:00]} 11. Be2 {[%emt 0:00:00]} Be7 $146 {[%emt 0:00:00]} ({Predecessor:} 11... Bd6 12. Nxc6 bxc6 13. Bxd6 Qxd6 14. O-O Qc7 15. Qd4 O-O 16. Rfd1 {1-0 (47) Annetts,I (1895)-Haddock,P (1688) Caleta 2012}) 12. O-O {[%emt 0:00:00]} O-O {[%emt 0:00:00]} 13. Qc2 {[%emt 0:00:00]} Nxd4 {[%emt 0:00:00]} 14. Nxd4 {[%emt 0:00:00]} Bd7 {[%emt 0:00:00]} 15. Rad1 {[%emt 0:00:00]} Qb6 {[%emt 0:00:00]} 16. Qb3 {[%emt 0:00:00]} Qxb3 {[%emt 0:00:00]} 17. Nxb3 {[%emt 0:00:00]} a5 {[%emt 0:01:22]} 18. Nd4 {[%emt 0:00:00]} Ba4 {[%emt 0:06:06]} 19. Rc1 {[%emt 0:00:00]} Bf6 {[%emt 0:01:17]} 20. Bb5 {[%emt 0:00:00]} Bxb5 {[%emt 0:03:20]} 21. Nxb5 {[%emt 0:00:36]} a4 {[%emt 0:00:00]} 22. a3 {[%emt 0:06:18]} h5 {[%emt 0:03:54]} 23. h3 {[%emt 0:04:17]} Ra5 {[%emt 0:03:13]} 24. Nd6 {[%emt 0:00:38]} Ra6 {[%emt 0:00:29]} 25. Nxb7 {[%emt 0:07:18]} Rb6 {[%emt 0:01:04]} 26. Nc5 {[%emt 0:00:13]} Rxb2 {[%emt 0:00:36]} 27. Nxa4 {[%emt 0:00:17]} Rb3 $11 {[%emt 0:01:07]} 28. c4 {[%emt 0:00:31]} 1/2-1/2

[Event "17th Delhi GM Open 2019-B"]
[Site "Delhi"]
[Date "2019.01.12"]
[Round "10"]
[White "Sai Kiran Y"]
[Black "Himanshu, Moudgil"]
[Result "1/2-1/2"]
[ECO "B08"]
[WhiteElo "1732"]
[BlackElo "1804"]
[Annotator "NA RC"]
[PlyCount "75"]
[EventDate "2019.01.09"]
[EventType "swiss"]
[EventCountry "IND"]
[SourceTitle "playchess.com"]
[Source "ChessBase"]
[SourceQuality "1"]
[TimeControl "3600+30"]

{[%evp 8,75,21,29,23,50,32767,32767,32767,40,33,48,41,31,45,27,44,28,39,18,25,32767,32767,32767,32767,32767,32767,32767,32767,0,0,0,-3,-7,32767,-8,-2,-4,-5,-6,-4,-4,-10,-8,-1,32767,32767,-15,-8,-8,0,32767,32767,32767,32767,32767,32767,32767,32767,32767,32767,32767,32767,32767,32767,32767,32767,32767,32767,48]} 1. d4 {[%emt 0:00:00]} Nf6 {[%emt 0:00:00]} 2. Bf4 {[%emt 0:00:00]} d6 3. Nc3 {[%emt 0:00:00]} Nbd7 {[%emt 0:00:00]} 4. Nf3 g6 {[%emt 0:00:00]} 5. e4 {[%emt 0:00:00]} Bg7 {[%emt 0:00:00]} 6. Qd2 {[%emt 0:00:00] LiveBook: 9 Games} O-O {[%emt 0:00:00]} 7. O-O-O {[%emt 0:00:00] B08: Pirc Defence: Classical System} c5 {[%emt 0:00:00]} 8. dxc5 {[%emt 0:00:00]} Nxc5 {[%emt 0:00:00]} 9. e5 $1 {[%emt 0:00:00]} Nce4 {[%emt 0:00:00]} 10. Nxe4 {[%emt 0:00:00]} Nxe4 {[%emt 0:00:00]} 11. Qe3 {[%emt 0:00:00]} d5 {[%emt 0:00:00]} 12. Bc4 $146 {[%emt 0:00:00]} ({Predecessor:} 12. Kb1 Qa5 13. Bd3 Nc5 14. Be2 e6 {1-0 (22) Bachmann,A (2646)-Hatrick,J (1910) Mar del Plata 2017}) 12... Be6 {[%emt 0:00:00]} 13. Nd4 {[%emt 0:00:00]} Qb6 {[%emt 0:00:00]} 14. Bd3 {[%emt 0:00:39]} f5 {[%emt 0:00:00]} 15. Nxe6 {[%emt 0:09:37]} Qxe6 {[%emt 0:00:00]} 16. f3 {[%emt 0:01:26]} g5 {[%emt 0:00:00]} 17. fxe4 {[%emt 0:03:20]} gxf4 {[%emt 0:00:00]} 18. exd5 {[%emt 0:02:32]} fxe3 {[%emt 0:04:01]} 19. dxe6 {[%emt 0:04:58]} Bxe5 {[%emt 0:00:01]} 20. g3 {[%emt 0:01:00]} Kg7 {[%emt 0:06:30]} 21. Rdf1 {[%emt 0:04:40]} f4 {[%emt 0:01:31]} 22. gxf4 {[%emt 0:00:06]} Rxf4 {[%emt 0:02:00]} 23. Rxf4 {[%emt 0:01:33]} Bxf4 {[%emt 0:00:00]} 24. Kd1 {[%emt 0:00:03]} Kf6 {[%emt 0:04:47]} 25. Bxh7 {[%emt 0:03:52]} Rh8 {[%emt 0:03:49]} 26. Be4 {[%emt 0:01:00]} Kxe6 {[%emt 0:03:00]} 27. Ke2 {[%emt 0:02:49]} Ke5 {[%emt 0:02:15]} 28. Bf3 {[%emt 0:02:18]} b6 $11 {[%emt 0:03:39]} 29. h4 {[%emt 0:00:26]} Kf5 {[%emt 0:00:30]} 30. h5 {[%emt 0:00:08]} e5 {[%emt 0:00:03]} 31. Rg1 {[%emt 0:03:19]} Rd8 {[%emt 0:00:01]} 32. Bg4+ {[%emt 0:01:10]} Kg5 {[%emt 0:00:00]} 33. Bf3+ {[%emt 0:00:54]} Kf5 {[%emt 0:01:09]} 34. Bg4+ {[%emt 0:00:20]} Kf6 {[%emt 0:00:30]} 35. Rd1 Rg8 {[%emt 0:00:02]} 36. Bf3 {[%emt 0:01:05]} Kf5 {[%emt 0:00:00]} 37. Rd7 {[%emt 0:02:06]} Ke6 {[%emt 0:00:00]} 38. Bd5+ {[%emt 0:03:04]} 1/2-1/2

[Event "17th Delhi GM Open 2019-B"]
[Site "Delhi"]
[Date "2019.01.12"]
[Round "10"]
[White "Prakash Yadav"]
[Black "Koustav Chakraborty"]
[Result "1-0"]
[ECO "C20"]
[WhiteElo "1718"]
[BlackElo "1898"]
[Annotator "NA RC"]
[PlyCount "85"]
[EventDate "2019.01.09"]
[EventType "swiss"]
[EventCountry "IND"]
[SourceTitle "playchess.com"]
[Source "ChessBase"]
[SourceQuality "1"]
[TimeControl "3600+30"]

{[%evp 8,85,-26,-27,-32,-36,-25,-52,-49,-64,-69,32767,32767,32767,66,66,98,62,75,79,77,75,32767,32767,32767,32767,32767,45,87,0,0,-36,32767,32767,0,-36,-40,-37,-34,-77,-72,-78,-57,-106,-63,-82,-71,-93,-97,-90,-99,-95,-85,32767,32767,32767,-54,-52,-51,-60,0,0,0,32767,32767,32767,32767,32767,34,32767,494,550,1524,1016,2229,29976,29988,29989,29989,29989]} 1. c4 {[%emt 0:00:00]} e5 {[%emt 0:00:00]} 2. e4 {[%emt 0:00:00]} Nc6 {[%emt 0:00:00]} 3. Nc3 {[%emt 0:00:00]} Bc5 {[%emt 0:00:00]} 4. Nf3 {[%emt 0:00:00] C20: 1 e4 e5: Unusual White second moves} d6 {[%emt 0:00:00] LiveBook: 8 Games} 5. Be2 {[%emt 0:00:00]} (5. d3 Nge7 6. a3 a6 7. b4 Ba7 8. h3 f5 9. Be3 Bxe3 10. fxe3 O-O 11. Qd2 Ng6 {0-1 (22) Antipov,M (2616)-Ovetchkin,R (2546) Yaroslavl 2018}) 5... f5 {[%emt 0:00:00]} 6. d3 {[%emt 0:00:00]} Nf6 {[%emt 0:00:00]} 7. Bg5 {[%emt 0:00:00]} h6 {[%emt 0:00:00]} 8. Bxf6 {[%emt 0:00:00]} Qxf6 {[%emt 0:00:00]} 9. Nd5 {[%emt 0:00:00]} Qf7 $146 {[%emt 0:00:00]} ({Predecessor:} 9... Qd8 10. a3 a5 11. Rb1 O-O {0-1 (23) Kutschke,P-Lengyel,B (2320) Mecklenburg VP 1996}) 10. Nh4 {[%emt 0:00:00]} Rg8 {[%emt 0:00:00]} (10... h5 $1 $11) 11. exf5 {[%emt 0:00:00]} Bxf5 {[%emt 0:00:00]} 12. Nxf5 {[%emt 0:00:00]} Qxf5 {[%emt 0:00:00]} 13. O-O {[%emt 0:00:00]} Qf7 {[%emt 0:00:00]} 14. Bg4 {[%emt 0:00:00]} Kd8 {[%emt 0:15:23]} 15. b4 {[%emt 0:00:00]} Bd4 {[%emt 0:00:21]} 16. Rc1 {[%emt 0:00:00]} Ne7 {[%emt 0:01:44]} 17. Nxe7 {[%emt 0:03:43]} Kxe7 {[%emt 0:04:40]} 18. c5 {[%emt 0:00:09]} d5 {[%emt 0:00:22]} 19. Qa4 {[%emt 0:01:26]} Rgd8 {[%emt 0:04:37]} 20. Qb5 {[%emt 0:06:03]} Rab8 {[%emt 0:00:31]} ({Black should play} 20... Qg6 $15 21. Bd1 Rab8) 21. Qa5 {[%emt 0:01:06]} Kf8 {[%emt 0:00:39]} 22. c6 {[%emt 0:02:16]} b5 {[%emt 0:01:36]} 23. Qa3 {[%emt 0:01:09]} Kg8 {[%emt 0:00:31]} 24. Qb3 {[%emt 0:00:22]} Kh8 {[%emt 0:00:50]} 25. g3 {[%emt 0:01:45]} Rb6 {[%emt 0:01:42]} 26. Bh3 {[%emt 0:00:16]} Rd6 {[%emt 0:03:14]} 27. Bg2 {[%emt 0:00:05]} Rb8 {[%emt 0:00:04]} 28. Kh1 {[%emt 0:01:22]} g5 {[%emt 0:00:40]} 29. Qd1 {[%emt 0:01:50]} Rf8 {[%emt 0:00:29]} 30. Qg4 {[%emt 0:02:47]} Qg6 {[%emt 0:00:43]} 31. f4 {[%emt 0:00:51]} gxf4 {[%emt 0:02:01]} ({But not} 31... Rxc6 $6 32. Rxc6 Qxc6 33. fxg5 $14) 32. Qxg6 {[%emt 0:00:04]} Rxg6 {[%emt 0:00:03]} 33. gxf4 {[%emt 0:00:14]} Be3 {[%emt 0:00:18]} (33... Rxf4 $15 34. Bxd5 Kg7) 34. fxe5 {[%emt 0:04:40] Discovered Attack (Double check)} Re8 {[%emt 0:02:02]} 35. Rce1 {[%emt 0:04:37]} d4 {[%emt 0:01:05]} 36. Rf7 {[%emt 0:05:09]} Reg8 {[%emt 0:00:13]} 37. Re2 {[%emt 0:01:49]} Rxc6 {[%emt 0:00:11]} 38. h4 {[%emt 0:00:21]} Rc3 $2 {[%emt 0:01:17] [#]} ({Better is} 38... Rcg6 $14) 39. e6 $1 {[%emt 0:01:49]} c5 {[%emt 0:03:25]} 40. e7 {[%emt 0:01:48]} (40. Be4 $142 Rg1+ 41. Kh2 cxb4 {[#]} 42. Rxe3 $1 {[%mdl 512]}) 40... cxb4 {[%emt 0:00:07]} 41. Be4 {[%emt 0:00:16]} Rc1+ {[%emt 0:01:38]} 42. Kh2 {[%emt 0:01:02]} Bf4+ {[%emt 0:00:00]} 43. Rxf4 {[%emt 0:00:00]} 1-0